[Event "Titled Tuesday Blitz June 20 Early 2023"]
[White "De Souza, Cristiano Gomes"]
[Black "Kollars, Dmitrij"]
[WhiteFideId "2151758"]
[BlackFideId "12909572"]
[WhiteElo "2068"]
[BlackElo "2584"]
[Result "1/2-1/2"]
[Round "2"]
[TimeControl "180+2"]
[Date "2023.06.20"]
[WhiteClock "0:00:13"]
[BlackClock "0:00:49"]
[Board "128"]

1. d4 {[%clk 0:03:00]}  Nf6 {[%clk 0:02:59]} 2. c4 {[%clk 0:02:59]}  e6 {[%clk 0:03:00]} 3. Nf3 {[%clk 0:02:59]}  d5 {[%clk 0:02:58]} 4. Nc3 {[%clk 0:02:58]}  Nbd7 {[%clk 0:02:57]} 5. Bg5 {[%clk 0:02:58]}  h6 {[%clk 0:02:56]} 6. Bxf6 {[%clk 0:02:58]}  Nxf6 {[%clk 0:02:56]} 7. e3 {[%clk 0:02:58]}  c6 {[%clk 0:02:54]} 8. Bd3 {[%clk 0:02:57]}  dxc4 {[%clk 0:02:52]} 9. Bxc4 {[%clk 0:02:57]}  b5 {[%clk 0:02:53]} 10. Bd3 {[%clk 0:02:56]}  Bb7 {[%clk 0:02:53]} 11. O-O {[%clk 0:02:53]}  Be7 {[%clk 0:02:53]} 12. Rc1 {[%clk 0:02:49]}  a6 {[%clk 0:02:53]} 13. Ne4 {[%clk 0:02:48]}  Nd7 {[%clk 0:02:45]} 14. a3 {[%clk 0:02:43]}  O-O {[%clk 0:02:43]} 15. Qc2 {[%clk 0:02:35]}  f5 {[%clk 0:02:41]} 16. Nc5 {[%clk 0:02:34]}  Nxc5 {[%clk 0:02:41]} 17. dxc5 {[%clk 0:02:34]}  Bf6 {[%clk 0:02:41]} 18. Rfd1 {[%clk 0:02:33]}  Qe7 {[%clk 0:02:41]} 19. b4 {[%clk 0:02:31]}  a5 {[%clk 0:02:41]} 20. Nd4 {[%clk 0:02:29]}  axb4 {[%clk 0:02:38]} 21. axb4 {[%clk 0:02:29]}  Ra4 {[%clk 0:02:39]} 22. Qb3 {[%clk 0:02:24]}  Rfa8 {[%clk 0:02:20]} 23. Nxf5 {[%clk 0:02:10]}  Qf8 {[%clk 0:02:20]} 24. Qxe6+ {[%clk 0:02:03]}  Kh8 {[%clk 0:02:20]} 25. Nd6 {[%clk 0:02:03]}  Bc8 {[%clk 0:02:05]} 26. Nf7+ {[%clk 0:01:43]}  Kg8 {[%clk 0:02:05]} 27. Nxh6+ {[%clk 0:01:42]}  Kh8 {[%clk 0:02:05]} 28. Qe4 {[%clk 0:01:21]}  g6 {[%clk 0:02:06]} 29. Qxg6 {[%clk 0:01:17]}  R8a7 {[%clk 0:02:04]} 30. Bf5 {[%clk 0:00:58]}  Rg7 {[%clk 0:02:00]} 31. Qh5 {[%clk 0:00:50]}  Bxf5 {[%clk 0:01:58]} 32. Nxf5+ {[%clk 0:00:42]}  Rh7 {[%clk 0:01:58]} 33. Qg6 {[%clk 0:00:38]}  Rxb4 {[%clk 0:01:57]} 34. Rd6 {[%clk 0:00:35]}  Be5 {[%clk 0:01:50]} 35. Re6 {[%clk 0:00:32]}  Re4 {[%clk 0:01:33]} 36. g3 {[%clk 0:00:22]}  Rf7 {[%clk 0:01:21]} 37. Rd1 {[%clk 0:00:17]}  Qg8 {[%clk 0:01:09]} 38. Qxg8+ {[%clk 0:00:13]}  Kxg8 {[%clk 0:01:10]} 39. Rd8+ {[%clk 0:00:12]}  Rf8 {[%clk 0:01:09]} 40. Rxf8+ {[%clk 0:00:12]}  Kxf8 {[%clk 0:01:10]} 41. Nd6 {[%clk 0:00:12]}  Bxd6 {[%clk 0:01:04]} 42. Rxe4 {[%clk 0:00:11]}  Bxc5 {[%clk 0:01:04]} 43. Re6 {[%clk 0:00:10]}  b4 {[%clk 0:01:01]} 44. Rxc6 {[%clk 0:00:10]}  Be7 {[%clk 0:01:01]} 45. Rb6 {[%clk 0:00:10]}  Ke8 {[%clk 0:01:01]} 46. h4 {[%clk 0:00:10]}  Kd7 {[%clk 0:01:01]} 47. Kg2 {[%clk 0:00:10]}  Bc5 {[%clk 0:01:01]} 48. Rb5 {[%clk 0:00:10]}  Kc6 {[%clk 0:01:02]} 49. Rb8 {[%clk 0:00:10]}  Bd6 {[%clk 0:01:02]} 50. Rxb4 {[%clk 0:00:09]}  Bxb4 {[%clk 0:01:02]} 51. f4 {[%clk 0:00:09]}  Kd5 {[%clk 0:01:02]} 52. Kf3 {[%clk 0:00:10]}  Be1 {[%clk 0:01:01]} 53. e4+ {[%clk 0:00:11]}  Ke6 {[%clk 0:01:00]} 54. g4 {[%clk 0:00:12]}  Bxh4 {[%clk 0:01:00]} 55. g5 {[%clk 0:00:12]}  Be1 {[%clk 0:01:00]} 56. Kg4 {[%clk 0:00:13]}  Bd2 {[%clk 0:01:00]} 57. f5+ {[%clk 0:00:14]}  Ke5 {[%clk 0:01:00]} 58. g6 {[%clk 0:00:14]}  Bh6 {[%clk 0:00:51]} 59. Kh5 {[%clk 0:00:14]}  Bf8 {[%clk 0:00:49]} 60. Kg5 {[%clk 0:00:14]}  Bg7 {[%clk 0:00:49]} 61. Kh5 {[%clk 0:00:13]}  Kxe4 {[%clk 0:00:48]} 62. Kg5 {[%clk 0:00:14]}  Ke5 {[%clk 0:00:48]} 63. Kh5 {[%clk 0:00:14]}  Kxf5 {[%clk 0:00:48]} 64. Kh4 {[%clk 0:00:13]}  Kxg6 {[%clk 0:00:49]} 1/2-1/2


[Site "https://www.chess.com"]

[Event "Titled Tuesday Blitz June 20 Early 2023"]
[White "Kramnik, Vladimir"]
[Black "Gomes, Luiz Alexandre de Souza"]
[WhiteFideId "4101588"]
[BlackFideId "2102790"]
[WhiteElo "2703"]
[BlackElo "2411"]
[Result "1-0"]
[Round "2"]
[TimeControl "180+2"]
[Date "2023.06.20"]
[WhiteClock "0:00:47"]
[BlackClock "0:00:12"]
[Board "129"]

1. c4 {[%clk 0:03:00]}  e6 {[%clk 0:02:58]} 2. Nc3 {[%clk 0:02:58]}  d5 {[%clk 0:02:58]} 3. d4 {[%clk 0:02:58]}  Nf6 {[%clk 0:02:58]} 4. cxd5 {[%clk 0:02:58]}  exd5 {[%clk 0:02:58]} 5. Bg5 {[%clk 0:02:58]}  c6 {[%clk 0:02:58]} 6. e3 {[%clk 0:02:58]}  Be7 {[%clk 0:02:58]} 7. Bd3 {[%clk 0:02:58]}  Nbd7 {[%clk 0:02:57]} 8. Nge2 {[%clk 0:02:57]}  O-O {[%clk 0:02:57]} 9. Qc2 {[%clk 0:02:57]}  Re8 {[%clk 0:02:57]} 10. O-O {[%clk 0:02:56]}  Nf8 {[%clk 0:02:57]} 11. f3 {[%clk 0:02:51]}  Be6 {[%clk 0:02:46]} 12. Bh4 {[%clk 0:02:48]}  Rc8 {[%clk 0:02:41]} 13. Rad1 {[%clk 0:02:47]}  c5 {[%clk 0:02:24]} 14. Bb5 {[%clk 0:02:45]}  N8d7 {[%clk 0:02:14]} 15. Kh1 {[%clk 0:02:38]}  a6 {[%clk 0:02:14]} 16. Bxd7 {[%clk 0:02:36]}  Qxd7 {[%clk 0:02:14]} 17. dxc5 {[%clk 0:02:30]}  Rxc5 {[%clk 0:02:14]} 18. Qd2 {[%clk 0:02:29]}  b5 {[%clk 0:02:06]} 19. Nf4 {[%clk 0:02:15]}  b4 {[%clk 0:02:01]} 20. Bxf6 {[%clk 0:02:10]}  Bxf6 {[%clk 0:01:55]} 21. Ncxd5 {[%clk 0:02:10]}  Bxd5 {[%clk 0:01:55]} 22. Nxd5 {[%clk 0:02:10]}  Qe6 {[%clk 0:01:22]} 23. e4 {[%clk 0:02:02]}  a5 {[%clk 0:01:19]} 24. Qf2 {[%clk 0:02:00]}  Rcc8 {[%clk 0:01:07]} 25. h3 {[%clk 0:01:46]}  h6 {[%clk 0:01:07]} 26. Rfe1 {[%clk 0:01:44]}  Be5 {[%clk 0:00:55]} 27. f4 {[%clk 0:01:40]}  Bb8 {[%clk 0:00:55]} 28. e5 {[%clk 0:01:34]}  Qf5 {[%clk 0:00:49]} 29. Qf3 {[%clk 0:01:28]}  Rc2 {[%clk 0:00:44]} 30. Ne3 {[%clk 0:01:25]}  Qc8 {[%clk 0:00:38]} 31. Nxc2 {[%clk 0:01:23]}  Qxc2 {[%clk 0:00:39]} 32. Qe2 {[%clk 0:01:17]}  Qc5 {[%clk 0:00:32]} 33. Rc1 {[%clk 0:01:14]}  Qb6 {[%clk 0:00:31]} 34. Qe4 {[%clk 0:01:11]}  Ba7 {[%clk 0:00:31]} 35. Qc6 {[%clk 0:01:09]}  Qb8 {[%clk 0:00:27]} 36. Qc7 {[%clk 0:01:06]}  Qa8 {[%clk 0:00:27]} 37. f5 {[%clk 0:01:03]}  Bf2 {[%clk 0:00:23]} 38. e6 {[%clk 0:00:59]}  fxe6 {[%clk 0:00:21]} 39. Rxe6 {[%clk 0:00:58]}  Rf8 {[%clk 0:00:17]} 40. f6 {[%clk 0:00:48]}  Bd4 {[%clk 0:00:12]} 41. Qxg7# {[%clk 0:00:47]} 1-0


[Site "https://www.chess.com"]

[Event "Titled Tuesday Blitz June 20 Early 2023"]
[White "Ai, Evan"]
[Black "Makhnev, Denis"]
[WhiteFideId "2094770"]
[BlackFideId "13707647"]
[WhiteElo "1963"]
[BlackElo "2515"]
[Result "0-1"]
[Round "2"]
[TimeControl "180+2"]
[Date "2023.06.20"]
[WhiteClock "0:00:22"]
[BlackClock "0:02:16"]
[Board "131"]

1. e4 {[%clk 0:03:00]}  Nf6 {[%clk 0:03:00]} 2. e5 {[%clk 0:02:58]}  Nd5 {[%clk 0:03:01]} 3. d4 {[%clk 0:02:58]}  d6 {[%clk 0:03:02]} 4. c4 {[%clk 0:02:55]}  Nb6 {[%clk 0:03:01]} 5. exd6 {[%clk 0:02:56]}  exd6 {[%clk 0:03:02]} 6. Nc3 {[%clk 0:02:56]}  Be7 {[%clk 0:03:02]} 7. Bd3 {[%clk 0:02:56]}  O-O {[%clk 0:03:03]} 8. Nge2 {[%clk 0:02:56]}  Nc6 {[%clk 0:03:04]} 9. O-O {[%clk 0:02:56]}  Bf6 {[%clk 0:03:04]} 10. Be3 {[%clk 0:02:55]}  Re8 {[%clk 0:03:05]} 11. b3 {[%clk 0:02:48]}  Bg4 {[%clk 0:03:04]} 12. h3 {[%clk 0:02:44]}  Bh5 {[%clk 0:03:04]} 13. Qd2 {[%clk 0:02:43]}  Bg6 {[%clk 0:03:01]} 14. Bxg6 {[%clk 0:02:42]}  hxg6 {[%clk 0:03:02]} 15. Nf4 {[%clk 0:02:39]}  Qd7 {[%clk 0:03:02]} 16. Nfd5 {[%clk 0:02:15]}  Nxd5 {[%clk 0:03:02]} 17. Nxd5 {[%clk 0:02:16]}  Bd8 {[%clk 0:03:03]} 18. b4 {[%clk 0:02:15]}  Ne7 {[%clk 0:03:03]} 19. Nxe7+ {[%clk 0:02:09]}  Bxe7 {[%clk 0:03:04]} 20. d5 {[%clk 0:02:09]}  Bf6 {[%clk 0:03:03]} 21. Bd4 {[%clk 0:02:09]}  Re4 {[%clk 0:03:03]} 22. Bxf6 {[%clk 0:02:08]}  gxf6 {[%clk 0:03:03]} 23. Qc3 {[%clk 0:02:07]}  f5 {[%clk 0:03:02]} 24. Rfe1 {[%clk 0:02:06]}  Rae8 {[%clk 0:03:03]} 25. f3 {[%clk 0:02:04]}  R4e5 {[%clk 0:02:59]} 26. Rxe5 {[%clk 0:01:58]}  dxe5 {[%clk 0:02:59]} 27. Rd1 {[%clk 0:01:58]}  e4 {[%clk 0:02:52]} 28. fxe4 {[%clk 0:01:57]}  fxe4 {[%clk 0:02:53]} 29. c5 {[%clk 0:01:57]}  e3 {[%clk 0:02:51]} 30. Qd3 {[%clk 0:01:31]}  a5 {[%clk 0:02:42]} 31. a3 {[%clk 0:01:31]}  axb4 {[%clk 0:02:43]} 32. axb4 {[%clk 0:01:32]}  Qa4 {[%clk 0:02:43]} 33. b5 {[%clk 0:01:17]}  Qb4 {[%clk 0:02:18]} 34. Qe2 {[%clk 0:00:34]}  Qxc5 {[%clk 0:02:17]} 35. h4 {[%clk 0:00:30]}  Re5 {[%clk 0:02:16]} 36. Kh2 {[%clk 0:00:23]}  Rxd5 {[%clk 0:02:16]} 37. Rxd5 {[%clk 0:00:24]}  Qxd5 {[%clk 0:02:17]} 38. Qxe3 {[%clk 0:00:24]}  Qxb5 {[%clk 0:02:17]} 39. Qc3 {[%clk 0:00:20]}  Qd7 {[%clk 0:02:14]} 40. Qf6 {[%clk 0:00:20]}  Qd6+ {[%clk 0:02:14]} 41. Qxd6 {[%clk 0:00:19]}  cxd6 {[%clk 0:02:15]} 42. Kg3 {[%clk 0:00:20]}  b5 {[%clk 0:02:16]} 43. Kf3 {[%clk 0:00:21]}  Kg7 {[%clk 0:02:15]} 44. Ke4 {[%clk 0:00:21]}  f5+ {[%clk 0:02:16]} 45. Kd5 {[%clk 0:00:22]}  Kh6 {[%clk 0:02:15]} 46. g3 {[%clk 0:00:21]}  Kh5 {[%clk 0:02:16]} 47. Kxd6 {[%clk 0:00:22]}  b4 {[%clk 0:02:16]} 48. Kc5 {[%clk 0:00:22]}  b3 {[%clk 0:02:16]} 0-1


[Site "https://www.chess.com"]

[Event "Titled Tuesday Blitz June 20 Early 2023"]
[White "Makhmudov, Shukhrat"]
[Black "Babazada, Khazar"]
[WhiteFideId "14200775"]
[BlackFideId "13413554"]
[WhiteElo "2135"]
[BlackElo "2369"]
[Result "0-1"]
[Round "2"]
[TimeControl "180+2"]
[Date "2023.06.20"]
[WhiteClock "0:00:39"]
[BlackClock "0:01:42"]
[Board "132"]

1. e4 {[%clk 0:02:58]}  e5 {[%clk 0:03:00]} 2. Nf3 {[%clk 0:02:58]}  Nc6 {[%clk 0:03:01]} 3. Bb5 {[%clk 0:02:58]}  a6 {[%clk 0:03:01]} 4. Bxc6 {[%clk 0:02:58]}  dxc6 {[%clk 0:03:01]} 5. d4 {[%clk 0:02:56]}  exd4 {[%clk 0:03:01]} 6. Qxd4 {[%clk 0:02:57]}  Qxd4 {[%clk 0:03:01]} 7. Nxd4 {[%clk 0:02:58]}  Bd7 {[%clk 0:03:01]} 8. O-O {[%clk 0:02:57]}  O-O-O {[%clk 0:03:02]} 9. Nc3 {[%clk 0:02:55]}  Nf6 {[%clk 0:03:01]} 10. Bg5 {[%clk 0:02:53]}  Be7 {[%clk 0:02:59]} 11. e5 {[%clk 0:02:52]}  Nd5 {[%clk 0:02:55]} 12. Bxe7 {[%clk 0:02:50]}  Nxe7 {[%clk 0:02:56]} 13. f4 {[%clk 0:02:48]}  c5 {[%clk 0:02:56]} 14. Nf3 {[%clk 0:02:48]}  h6 {[%clk 0:02:51]} 15. Ne4 {[%clk 0:02:45]}  b6 {[%clk 0:02:52]} 16. c4 {[%clk 0:02:42]}  Bc6 {[%clk 0:02:42]} 17. Rfe1 {[%clk 0:02:41]}  Nf5 {[%clk 0:02:41]} 18. Ng3 {[%clk 0:02:24]}  Nd4 {[%clk 0:02:18]} 19. Nxd4 {[%clk 0:02:21]}  Rxd4 {[%clk 0:02:19]} 20. f5 {[%clk 0:01:53]}  Rxc4 {[%clk 0:02:18]} 21. e6 {[%clk 0:01:54]}  fxe6 {[%clk 0:02:18]} 22. fxe6 {[%clk 0:01:54]}  Re8 {[%clk 0:02:18]} 23. Nf5 {[%clk 0:01:52]}  Rc2 {[%clk 0:02:10]} 24. e7 {[%clk 0:01:43]}  Rxg2+ {[%clk 0:02:04]} 25. Kf1 {[%clk 0:01:43]}  Rg5 {[%clk 0:02:02]} 26. Ng3 {[%clk 0:01:39]}  h5 {[%clk 0:02:00]} 27. Re3 {[%clk 0:01:09]}  h4 {[%clk 0:01:42]} 28. Ne2 {[%clk 0:00:56]}  Rf5+ {[%clk 0:01:43]} 29. Kg1 {[%clk 0:00:51]}  Rf7 {[%clk 0:01:42]} 30. Nf4 {[%clk 0:00:39]}  Rxf4 {[%clk 0:01:42]} 0-1


[Site "https://www.chess.com"]

[Event "Titled Tuesday Blitz June 20 Early 2023"]
[White "Timofeev, Artyom"]
[Black "Fiedorek, Michal"]
[WhiteFideId "4140419"]
[BlackFideId "1199528"]
[WhiteElo "2570"]
[BlackElo "2135"]
[Result "1-0"]
[Round "2"]
[TimeControl "180+2"]
[Date "2023.06.20"]
[WhiteClock "0:01:51"]
[BlackClock "0:00:22"]
[Board "133"]

1. d4 {[%clk 0:03:00]}  d5 {[%clk 0:02:58]} 2. c4 {[%clk 0:03:00]}  e6 {[%clk 0:02:59]} 3. Nc3 {[%clk 0:03:00]}  Nf6 {[%clk 0:02:59]} 4. Bg5 {[%clk 0:02:59]}  Be7 {[%clk 0:02:57]} 5. e3 {[%clk 0:02:59]}  h6 {[%clk 0:02:57]} 6. Bxf6 {[%clk 0:02:57]}  Bxf6 {[%clk 0:02:57]} 7. Qf3 {[%clk 0:02:56]}  dxc4 {[%clk 0:02:47]} 8. Bxc4 {[%clk 0:02:56]}  O-O {[%clk 0:02:47]} 9. Rd1 {[%clk 0:02:52]}  c5 {[%clk 0:02:47]} 10. Nge2 {[%clk 0:02:50]}  cxd4 {[%clk 0:02:43]} 11. Nxd4 {[%clk 0:02:49]}  Qc7 {[%clk 0:02:43]} 12. Bb3 {[%clk 0:02:45]}  Nd7 {[%clk 0:02:43]} 13. O-O {[%clk 0:02:43]}  Ne5 {[%clk 0:02:18]} 14. Qg3 {[%clk 0:02:41]}  Bd7 {[%clk 0:02:16]} 15. Ne4 {[%clk 0:02:40]}  Be7 {[%clk 0:02:06]} 16. Rc1 {[%clk 0:02:38]}  Bc6 {[%clk 0:01:57]} 17. Bxe6 {[%clk 0:02:24]}  Bd8 {[%clk 0:00:38]} 18. Nxc6 {[%clk 0:02:04]}  Nxc6 {[%clk 0:00:35]} 19. Qxc7 {[%clk 0:02:01]}  Bxc7 {[%clk 0:00:36]} 20. Bd5 {[%clk 0:02:01]}  Be5 {[%clk 0:00:36]} 21. Bxc6 {[%clk 0:02:00]}  bxc6 {[%clk 0:00:36]} 22. b3 {[%clk 0:01:59]}  Rfc8 {[%clk 0:00:35]} 23. Rc2 {[%clk 0:01:57]}  a5 {[%clk 0:00:35]} 24. Nc5 {[%clk 0:01:57]}  Bd6 {[%clk 0:00:33]} 25. Na4 {[%clk 0:01:56]}  Rc7 {[%clk 0:00:31]} 26. g3 {[%clk 0:01:56]}  h5 {[%clk 0:00:28]} 27. Kg2 {[%clk 0:01:54]}  g6 {[%clk 0:00:28]} 28. Rfc1 {[%clk 0:01:53]}  Rac8 {[%clk 0:00:28]} 29. Nb6 {[%clk 0:01:52]}  Kg7 {[%clk 0:00:22]} 30. Nxc8 {[%clk 0:01:51]} 1-0


[Site "https://www.chess.com"]

[Event "Titled Tuesday Blitz June 20 Early 2023"]
[White "Kovalenko, Igor"]
[Black "Ramirez Vido, Robert Yorisan"]
[WhiteFideId "14117908"]
[BlackFideId "3513823"]
[WhiteElo "2574"]
[BlackElo "2402"]
[Result "1-0"]
[Round "2"]
[TimeControl "180+2"]
[Date "2023.06.20"]
[WhiteClock "0:01:14"]
[BlackClock "0:00:00"]
[Board "135"]

1. e4 {[%clk 0:02:08]}  d6 {[%clk 0:02:58]} 2. d4 {[%clk 0:02:08]}  Nf6 {[%clk 0:02:58]} 3. Bd3 {[%clk 0:02:07]}  g6 {[%clk 0:02:58]} 4. Qe2 {[%clk 0:02:06]}  Nc6 {[%clk 0:02:54]} 5. c3 {[%clk 0:02:05]}  Bg7 {[%clk 0:02:54]} 6. f4 {[%clk 0:02:03]}  O-O {[%clk 0:02:54]} 7. e5 {[%clk 0:02:01]}  Nd5 {[%clk 0:02:31]} 8. Nf3 {[%clk 0:02:01]}  Bg4 {[%clk 0:01:43]} 9. O-O {[%clk 0:02:00]}  dxe5 {[%clk 0:01:40]} 10. fxe5 {[%clk 0:02:00]}  e6 {[%clk 0:01:39]} 11. h3 {[%clk 0:01:52]}  Bxf3 {[%clk 0:01:33]} 12. Rxf3 {[%clk 0:01:53]}  Nce7 {[%clk 0:01:30]} 13. Nd2 {[%clk 0:01:50]}  c5 {[%clk 0:01:23]} 14. dxc5 {[%clk 0:01:50]}  Qc7 {[%clk 0:01:12]} 15. Ne4 {[%clk 0:01:46]}  Bxe5 {[%clk 0:01:02]} 16. Bh6 {[%clk 0:01:44]}  Bg7 {[%clk 0:00:48]} 17. Bxg7 {[%clk 0:01:43]}  Kxg7 {[%clk 0:00:48]} 18. Qf2 {[%clk 0:01:38]}  f5 {[%clk 0:00:27]} 19. Ng5 {[%clk 0:01:33]}  Rf6 {[%clk 0:00:15]} 20. c4 {[%clk 0:01:23]}  Nb4 {[%clk 0:00:12]} 21. a3 {[%clk 0:01:21]}  Nxd3 {[%clk 0:00:11]} 22. Rxd3 {[%clk 0:01:22]}  Rc8 {[%clk 0:00:06]} 23. b4 {[%clk 0:01:21]}  h6 {[%clk 0:00:06]} 24. Nf3 {[%clk 0:01:18]}  Nc6 {[%clk 0:00:05]} 25. Rad1 {[%clk 0:01:19]}  Rf7 {[%clk 0:00:03]} 26. Rd6 {[%clk 0:01:15]}  e5 {[%clk 0:00:00]} 27. Qg3 {[%clk 0:01:14]} 1-0


[Site "https://www.chess.com"]

[Event "Titled Tuesday Blitz June 20 Early 2023"]
[White "Zia, Tahsin Tajwar"]
[Black "Dehtiarov, Roman"]
[WhiteFideId "10211888"]
[BlackFideId "14186640"]
[WhiteElo "2062"]
[BlackElo "2189"]
[Result "0-1"]
[Round "2"]
[TimeControl "180+2"]
[Date "2023.06.20"]
[WhiteClock "0:01:08"]
[BlackClock "0:00:42"]
[Board "137"]

1. d4 {[%clk 0:03:00]}  Nf6 {[%clk 0:02:59]} 2. c4 {[%clk 0:03:00]}  e6 {[%clk 0:03:00]} 3. Nc3 {[%clk 0:03:00]}  Bb4 {[%clk 0:02:59]} 4. a3 {[%clk 0:02:57]}  Bxc3+ {[%clk 0:02:59]} 5. bxc3 {[%clk 0:02:58]}  b6 {[%clk 0:02:57]} 6. f3 {[%clk 0:02:58]}  d6 {[%clk 0:02:49]} 7. e4 {[%clk 0:02:58]}  Ba6 {[%clk 0:02:48]} 8. Bd3 {[%clk 0:02:58]}  O-O {[%clk 0:02:45]} 9. Ne2 {[%clk 0:02:57]}  Nc6 {[%clk 0:02:45]} 10. Ng3 {[%clk 0:02:48]}  Na5 {[%clk 0:02:42]} 11. Qe2 {[%clk 0:02:48]}  c5 {[%clk 0:02:42]} 12. O-O {[%clk 0:02:43]}  cxd4 {[%clk 0:02:39]} 13. cxd4 {[%clk 0:02:43]}  Nb3 {[%clk 0:02:39]} 14. Bb2 {[%clk 0:02:38]}  Nxa1 {[%clk 0:02:39]} 15. Bxa1 {[%clk 0:02:39]}  d5 {[%clk 0:02:36]} 16. cxd5 {[%clk 0:02:36]}  Bxd3 {[%clk 0:02:35]} 17. Qxd3 {[%clk 0:02:37]}  exd5 {[%clk 0:02:36]} 18. e5 {[%clk 0:02:38]}  Ne8 {[%clk 0:02:36]} 19. f4 {[%clk 0:02:38]}  Qc7 {[%clk 0:02:19]} 20. f5 {[%clk 0:02:30]}  Qc4 {[%clk 0:02:15]} 21. Qe3 {[%clk 0:02:28]}  f6 {[%clk 0:02:16]} 22. Nh5 {[%clk 0:02:21]}  Rc8 {[%clk 0:02:12]} 23. e6 {[%clk 0:02:18]}  Nd6 {[%clk 0:02:06]} 24. Bb2 {[%clk 0:02:12]}  Ne4 {[%clk 0:02:03]} 25. Qf4 {[%clk 0:01:36]}  Qe2 {[%clk 0:01:58]} 26. Ng3 {[%clk 0:01:25]}  Nxg3 {[%clk 0:01:58]} 27. Qxg3 {[%clk 0:01:26]}  Qxb2 {[%clk 0:01:58]} 28. e7 {[%clk 0:01:25]}  Rfe8 {[%clk 0:01:57]} 29. Qd6 {[%clk 0:01:26]}  Rc2 {[%clk 0:01:55]} 30. Qxd5+ {[%clk 0:01:26]}  Kh8 {[%clk 0:01:55]} 31. Re1 {[%clk 0:01:21]}  Rc1 {[%clk 0:00:57]} 32. Rxc1 {[%clk 0:01:19]}  Qxc1+ {[%clk 0:00:58]} 33. Kf2 {[%clk 0:01:19]}  Qf4+ {[%clk 0:00:57]} 34. Ke2 {[%clk 0:01:15]}  Rxe7+ {[%clk 0:00:56]} 35. Kd1 {[%clk 0:01:14]}  Qf1+ {[%clk 0:00:52]} 36. Kd2 {[%clk 0:01:13]}  Re2+ {[%clk 0:00:51]} 37. Kd3 {[%clk 0:01:14]}  Qd1+ {[%clk 0:00:51]} 38. Kc4 {[%clk 0:01:13]}  Rc2+ {[%clk 0:00:51]} 39. Kb5 {[%clk 0:01:14]}  Rc8 {[%clk 0:00:47]} 40. Qd7 {[%clk 0:01:08]}  Qd3+ {[%clk 0:00:42]} 0-1


[Site "https://www.chess.com"]

[Event "Titled Tuesday Blitz June 20 Early 2023"]
[White "Mendonca, Leon Luke"]
[Black "Silva Lucena, Cristian"]
[WhiteFideId "35028561"]
[BlackFideId "2232588"]
[WhiteElo "2464"]
[BlackElo "2223"]
[Result "1-0"]
[Round "2"]
[TimeControl "180+2"]
[Date "2023.06.20"]
[WhiteClock "0:01:46"]
[BlackClock "0:00:49"]
[Board "138"]

1. e4 {[%clk 0:03:00]}  c5 {[%clk 0:02:46]} 2. Nf3 {[%clk 0:03:00]}  e6 {[%clk 0:02:45]} 3. g3 {[%clk 0:02:59]}  Nc6 {[%clk 0:02:44]} 4. Bg2 {[%clk 0:03:00]}  Nf6 {[%clk 0:02:45]} 5. Qe2 {[%clk 0:03:00]}  d6 {[%clk 0:02:45]} 6. O-O {[%clk 0:03:00]}  Be7 {[%clk 0:02:45]} 7. c3 {[%clk 0:02:59]}  O-O {[%clk 0:02:43]} 8. d4 {[%clk 0:02:59]}  cxd4 {[%clk 0:02:39]} 9. cxd4 {[%clk 0:03:00]}  e5 {[%clk 0:02:34]} 10. d5 {[%clk 0:02:52]}  Nb8 {[%clk 0:02:33]} 11. Nc3 {[%clk 0:02:39]}  Na6 {[%clk 0:02:29]} 12. Be3 {[%clk 0:02:28]}  Bg4 {[%clk 0:02:24]} 13. Rfc1 {[%clk 0:02:25]}  Rc8 {[%clk 0:02:23]} 14. h3 {[%clk 0:02:25]}  Bh5 {[%clk 0:02:21]} 15. Qb5 {[%clk 0:02:08]}  Nc5 {[%clk 0:02:14]} 16. Nd2 {[%clk 0:02:08]}  a6 {[%clk 0:02:10]} 17. Qf1 {[%clk 0:02:08]}  b5 {[%clk 0:01:46]} 18. b4 {[%clk 0:02:04]}  Ncd7 {[%clk 0:01:39]} 19. a4 {[%clk 0:01:56]}  Rc4 {[%clk 0:01:25]} 20. Nxc4 {[%clk 0:01:55]}  bxc4 {[%clk 0:01:23]} 21. Qxc4 {[%clk 0:01:55]}  Qb8 {[%clk 0:01:20]} 22. Qxa6 {[%clk 0:01:50]}  Qxb4 {[%clk 0:01:19]} 23. Qb5 {[%clk 0:01:50]}  Rb8 {[%clk 0:01:16]} 24. Qxb4 {[%clk 0:01:47]}  Rxb4 {[%clk 0:01:17]} 25. Rab1 {[%clk 0:01:47]}  Rc4 {[%clk 0:01:14]} 26. Bf1 {[%clk 0:01:46]}  Rc8 {[%clk 0:01:08]} 27. a5 {[%clk 0:01:46]}  Bf3 {[%clk 0:01:06]} 28. Bg2 {[%clk 0:01:44]}  Bxg2 {[%clk 0:00:59]} 29. Kxg2 {[%clk 0:01:45]}  h5 {[%clk 0:00:59]} 30. a6 {[%clk 0:01:45]}  Ra8 {[%clk 0:00:55]} 31. Ra1 {[%clk 0:01:45]}  Bd8 {[%clk 0:00:54]} 32. a7 {[%clk 0:01:45]}  Bb6 {[%clk 0:00:53]} 33. Bxb6 {[%clk 0:01:45]}  Nxb6 {[%clk 0:00:54]} 34. Nb5 {[%clk 0:01:46]}  Nxe4 {[%clk 0:00:49]} 35. Nc7 {[%clk 0:01:46]} 1-0


[Site "https://www.chess.com"]

[Event "Titled Tuesday Blitz June 20 Early 2023"]
[White "Vakhlamov, Igor L."]
[Black "Nikologorsky, Matfei"]
[WhiteFideId "24126748"]
[BlackFideId "24102474"]
[WhiteElo "2407"]
[BlackElo "2153"]
[Result "1-0"]
[Round "2"]
[TimeControl "180+2"]
[Date "2023.06.20"]
[WhiteClock "0:01:01"]
[BlackClock "0:00:15"]
[Board "139"]

1. e4 {[%clk 0:03:00]}  c5 {[%clk 0:02:59]} 2. Nf3 {[%clk 0:03:01]}  e6 {[%clk 0:02:59]} 3. Nc3 {[%clk 0:03:01]}  a6 {[%clk 0:02:59]} 4. d4 {[%clk 0:03:01]}  cxd4 {[%clk 0:03:00]} 5. Nxd4 {[%clk 0:03:01]}  Qc7 {[%clk 0:03:01]} 6. Bd3 {[%clk 0:03:00]}  Nc6 {[%clk 0:03:00]} 7. Nxc6 {[%clk 0:02:54]}  dxc6 {[%clk 0:03:01]} 8. O-O {[%clk 0:02:53]}  Nf6 {[%clk 0:03:02]} 9. f4 {[%clk 0:02:51]}  e5 {[%clk 0:03:02]} 10. fxe5 {[%clk 0:02:51]}  Ng4 {[%clk 0:02:58]} 11. Qf3 {[%clk 0:02:16]}  Bc5+ {[%clk 0:02:38]} 12. Kh1 {[%clk 0:02:15]}  Nxe5 {[%clk 0:02:38]} 13. Qg3 {[%clk 0:02:14]}  O-O {[%clk 0:02:38]} 14. Bh6 {[%clk 0:02:09]}  f6 {[%clk 0:02:37]} 15. Bf4 {[%clk 0:02:07]}  Be6 {[%clk 0:02:26]} 16. a3 {[%clk 0:02:06]}  Rad8 {[%clk 0:02:16]} 17. Rad1 {[%clk 0:02:05]}  Bd6 {[%clk 0:02:11]} 18. Ne2 {[%clk 0:02:03]}  Ng6 {[%clk 0:01:30]} 19. Bxd6 {[%clk 0:01:55]}  Qxd6 {[%clk 0:01:24]} 20. Bc4 {[%clk 0:01:44]}  Qxd1 {[%clk 0:01:18]} 21. Bxe6+ {[%clk 0:01:43]}  Kh8 {[%clk 0:01:18]} 22. Rxd1 {[%clk 0:01:43]}  Rxd1+ {[%clk 0:01:19]} 23. Ng1 {[%clk 0:01:43]}  Ne5 {[%clk 0:01:15]} 24. h3 {[%clk 0:01:39]}  Re8 {[%clk 0:01:10]} 25. Bb3 {[%clk 0:01:36]}  c5 {[%clk 0:01:05]} 26. Bd5 {[%clk 0:01:35]}  b5 {[%clk 0:01:02]} 27. Kh2 {[%clk 0:01:35]}  Rd2 {[%clk 0:00:59]} 28. Qc3 {[%clk 0:01:24]}  Rd1 {[%clk 0:00:55]} 29. Qxc5 {[%clk 0:01:21]}  h6 {[%clk 0:00:47]} 30. Ne2 {[%clk 0:01:16]}  Rd2 {[%clk 0:00:45]} 31. Nf4 {[%clk 0:01:16]}  Kh7 {[%clk 0:00:38]} 32. Qc3 {[%clk 0:01:14]}  Rd1 {[%clk 0:00:31]} 33. Nd3 {[%clk 0:01:11]}  h5 {[%clk 0:00:23]} 34. Nxe5 {[%clk 0:01:07]}  Rxe5 {[%clk 0:00:24]} 35. Qc8 {[%clk 0:01:06]}  Rd2 {[%clk 0:00:21]} 36. Qg8+ {[%clk 0:01:06]}  Kh6 {[%clk 0:00:22]} 37. Bf7 {[%clk 0:01:01]}  Rxc2 {[%clk 0:00:15]} 38. Qh8+ {[%clk 0:01:00]}  Kg5 {[%clk 0:00:16]} 39. Qxg7+ {[%clk 0:01:01]}  Kf4 {[%clk 0:00:16]} 40. Qxf6+ {[%clk 0:01:00]}  Kxe4 {[%clk 0:00:17]} 41. Bg6+ {[%clk 0:01:01]}  Kd4 {[%clk 0:00:15]} 42. Bxc2 {[%clk 0:01:01]} 1-0


[Site "https://www.chess.com"]